Cogmind - Beta 15 @@@ ROGUE MODE // 2025.06.09 @ 22:00:15 Player: Struisvogel Result: Self-destructed Performance ------------- Evolutions (1) 500 Regions Visited (2) 400 Robots Destroyed (4) 20 Value Destroyed (85) 85 Prototype IDs (0) 0 Alien Tech Used (0) 0 Bonus (0) 0 TOTAL SCORE: 1005 Bonus ------- None Cogmind --------- Core Integrity 336/400 Matter 295/300 Energy 100/100 System Corruption 0% Temperature Cool (0) Movement Core (100) Ox1 Location -9/Materials Parts ------- > --- POWER (1) -------- (None) > --- PROPULSION (3) --- (None) > --- UTILITY (3) ------ Small Storage Unit Structural Scanner > --- WEAPON (2) ------- (None) > --- INVENTORY (8) ---- Light Ion Engine Aluminum Leg Aluminum Leg Aluminum Leg Light Armor Plating Beam Cannon Assault Rifle Peak State ------------ > --- POWER ------------ Ion Engine > --- PROPULSION ------- Aluminum Leg Aluminum Leg > --- UTILITY ---------- Medium Storage Unit Structural Scanner > --- WEAPON ----------- Small Laser Assault Rifle > --- INVENTORY -------- Light Ion Engine Light Treads Light Treads Aluminum Leg Aluminum Leg Aluminum Leg Small Storage Unit Light Armor Plating Beam Cannon Assault Rifle [Rating: 8] Favorites ----------- Power Ion Engine Engine Ion Engine Propulsion Aluminum Leg Leg Aluminum Leg Hover Unit Hover Unit Utility Small Storage Unit Device Structural Scanner Storage Small Storage Unit Weapon Small Laser Energy Gun Small Laser Ballistic Gun Assault Rifle Build | -11 -10 -9 ------- Run | Yrd Mat Mat Slots Evolved 2 | . . 2 Power . | . . . Propulsion 1 | . . 1 Utility 1 | . . 1 Weapon . | . . . Parts Attached 12 | 4 7 1 Power 1 | 1 . . Engine 1 | 1 . . Core . | . . . Reactor . | . . . Propulsion 6 | . 5 1 Treads . | . . . Leg 3 | . 3 . Wheel . | . . . Hover 3 | . 2 1 Flight . | . . . Utility 3 | 1 2 . Device 1 | . 1 . Storage 2 | 1 1 . Processor . | . . . Hackware . | . . . Protection . | . . . Artifact . | . . . Weapon 2 | 2 . . Energy Gun 1 | 1 . . Energy Cannon . | . . . Ballistic Gun 1 | 1 . . Ballistic Cannon . | . . . Launcher . | . . . Special Weapon . | . . . Impact Weapon . | . . . Slashing Weapon . | . . . Piercing Weapon . | . . . Special Melee Weapon . | . . . Unidentified Prototypes . | . . . Parts Lost 4 | . 3 1 Power 1 | . 1 . Propulsion 3 | . 2 1 Utility . | . . . Weapon . | . . . Highest Loss Streak 3 | . 3 1 To Critical Strikes . | . . . Average Backups 7 | 4 8 7 Power . | . 1 1 Propulsion 3 | 3 3 3 Utility 1 | . 1 1 Weapon 1 | . 1 2 Tool/Special . | . . . Unused Backups 9 | . 2 7 Power 1 | . . 1 Propulsion 5 | . 2 3 Utility 1 | . . 1 Weapon 2 | . . 2 Tool/Special . | . . . Average Slot Usage (%) 72 | . 78 33 Engine 12 | . 14 . Leg 15 | . 17 . Hover 5 | . 4 11 Device 4 | . 3 11 Storage 13 | . 14 11 Energy Gun 10 | . 11 . Ballistic Gun 10 | . 11 . Peak Build Rating 8 | 4 8 3 Average Rating 5 | 3 5 2 On Entrance 2 | . 4 2 Naked Turns . | . . . Heaviest Build 19 | 13 19 6 Greatest Support 20 | 3 20 6 Greatest Overweight (x) 4 | 4 4 1 Average Overweight (x) . | 3 . . Largest Inventory Capacity 10 | 8 10 8 Average Capacity 8 | 7 9 8 Most Carried 10 | 6 10 7 Average Carried 7 | 4 8 7 Final Capacity 8 | 8 8 8 Final Carried 8 | 6 8 7 Class Distribution -------------------- 100% | Mutant Dominant Class ---------------- Mutant | -10/Materials Mutant | -9/Materials Resources | -11 -10 -9 ----------- Run | Yrd Mat Mat Matter Collected 329 | 219 110 . Remotely . | . . . Salvage Created 118 | . 118 . Parts 9 | . 9 . Haulers Intercepted . | . . . Recyclers Shooed . | . . . Parts Field Recycled . | . . . Retrieved Matter . | . . . Parts Self-Destructed . | . . . Prevented . | . . . Kills | -11 -10 -9 ------- Run | Yrd Mat Mat Combat Hostiles Destroyed 2 | . 2 . Guns 2 | . 2 . Classes Destroyed 3 | . 3 . Worker 1 | . 1 . Watcher 1 | . 1 . Grunt 2 | . 2 . Best Kill Streak 3 | . 3 . Combat Bots Only 1 | . 1 . Max Kills in Single Turn 1 | . 1 . Gunslinging . | . . . Exploded . | . . . Melee . | . . . Uniques/NPCs Destroyed . | . . . Combat | -11 -10 -9 -------- Run | Yrd Mat Mat Hostile Shots Fired 76 | . 63 13 Missed 18 | . 15 3 Hits 58 | . 48 10 Projectile 58 | . 48 10 Critical Strikes 1 | . . 1 Damage Taken 608 | . 501 107 Core 238 | . 174 64 Absorbed by Shields . | . . . Core Remaining (%) 65 | 100 30 . Volleys Fired 14 | 1 13 . Largest 2 | 2 2 . Hottest 60 | 60 60 . Shots Fired 28 | 2 26 . Gun 28 | 2 26 . Cannon . | . . . Launcher . | . . . Special . | . . . Kinetic 14 | 1 13 . Thermal 14 | 1 13 . Explosive . | . . . Electromagnetic . | . . . Robot Hit Streak 8 | 1 8 . Robot Miss Streak 2 | 1 2 . Penetration Max . | . . . Secondary Targets . | . . . Shots Hit Robots 20 | 1 19 . Core Hits 7 | . 7 . Critical Kills . | . . . Critical Parts Destroyed . | . . . Critical Strikes . | . . . Melee Attacks . | . . . Impact . | . . . Slashing . | . . . Piercing . | . . . Sneak Attacks . | . . . Combat Hostiles . | . . . Follow-up Attacks . | . . . Damage Inflicted 276 | 11 265 . Guns 252 | 11 241 . Cannons . | . . . Explosions . | . . . Melee . | . . . Ramming 24 | . 24 . Kinetic 153 | 11 142 . Thermal 99 | . 99 . Explosive . | . . . Electromagnetic . | . . . Impact . | . . . Slashing . | . . . Piercing . | . . . Highest Corruption . | . . . Average Corruption . | . . . Corruption Purged . | . . . Corruption Blocked . | . . . Overload Shots . | . . . Overflow Damage . | . . . Projectiles . | . . . Explosions . | . . . Melee . | . . . Knockbacks . | . . . Impact . | . . . Kinetic . | . . . Secondary . | . . . Self-Inflicted Damage 5 | . 5 . Shots . | . . . Rammed 6 | . 6 . Targets Rammed 7 | . 7 . Kicked 1 | . 1 . Crushed . | . . . Highest Temperature 48 | . 48 2 Average Temperature 23 | . 24 2 Received Heat Transfer 252 | . 204 48 Siege Activations . | . . . Martial Activations . | . . . Shielding Activations . | . . . Robots Disrupted . | . . . Combat Hostiles . | . . . Robots Corrupted . | . . . Combat Hostiles . | . . . Parts Fried . | . . . Impact Corruptions . | . . . Robots Melted . | . . . Combat Hostiles . | . . . Parts Melted 1 | . 1 . Heat Transferred 225 | . 225 . Parts Sabotaged . | . . . Parts Stolen . | . . . Parts Stripped . | . . . Power Chain Reactions . | . . . Alert | -11 -10 -9 ------- Run | Yrd Mat Mat Maximum Alert Level . | . . . Low Security (%) 100 | 100 100 100 Level 1 . | . . . Level 2 . | . . . Level 3 . | . . . Level 4 . | . . . Level 5 . | . . . High Security . | . . . Max Security . | . . . Peak Influence 41 | . 41 15 Initial . | . . . Average 5 | . 6 3 Influence Increases 107 | . 77 30 Destroy 0b10 Robot/C 40 | . 40 . Destroy 0b10 Robot/NC 10 | . 10 . Destroy Leader 12 | . 12 . Lose Combat Pursuer 45 | . 15 30 Influence Decreases 102 | . 77 25 Time Decay 91 | . 76 15 Lost Part 11 | . 1 10 Squads Dispatched 2 | . 2 . Investigation . | . . . Extermination . | . . . Reinforcement 2 | . 2 . Assault . | . . . Garrison . | . . . Intercept . | . . . Searches Triggered . | . . . Construction Impeded . | . . . Haulers Reinforced . | . . . Active Scanning Responses . | . . . Cargo Convoy Interrupts . | . . . Stealth | -11 -10 -9 --------- Run | Yrd Mat Mat Distress Signals 1 | . 1 . Communications Jammed . | . . . Distress Signals . | . . . Times Spotted 19 | . 12 7 Peak Tracking Total 7 | . 4 7 Tactical Retreats 3 | . 1 2 Traps | -11 -10 -9 ------- Run | Yrd Mat Mat Traps Triggered . | . . . Indirectly . | . . . Trap Hack Attempts . | . . . Triggered . | . . . Disarmed . | . . . Reprogrammed . | . . . Reused . | . . . Traps Extracted . | . . . Installed . | . . . Triggered . | . . . Machines | -11 -10 -9 ---------- Run | Yrd Mat Mat Machines Disabled . | . . . Max in Single Turn . | . . . Machines Repaired . | . . . Machines Dismantled . | . . . Machines Sabotaged . | . . . Overloaded Fab Kills . | . . . Hacking | -11 -10 -9 --------- Run | Yrd Mat Mat Machines Accessed . | . . . Terminals . | . . . Fabricators . | . . . Repair Stations . | . . . Recycling Units . | . . . Scanalyzers . | . . . Garrison Access . | . . . Total Hacks . | . . . Successful . | . . . Failed . | . . . Catastrophic . | . . . Database Lockouts . | . . . Manual . | . . . Terminals . | . . . Fabricators . | . . . Repair Stations . | . . . Recycling Units . | . . . Scanalyzers . | . . . Garrison Access . | . . . Terminal Hacks . | . . . Fabricator Hacks . | . . . Repair Station Hacks . | . . . Recycling Unit Hacks . | . . . Scanalyzer . | . . . Garrison Access Hacks . | . . . Unauthorized Hacks . | . . . Terminals . | . . . Fabricators . | . . . Repair Stations . | . . . Recycling Units . | . . . Scanalyzers . | . . . Garrison Access . | . . . Data Cores Recovered . | . . . Used . | . . . Hacking Detections . | . . . Full Trace Events . | . . . Feedback Events . | . . . Feedback Blocked . | . . . Robot Schematics Acquired . | . . . Robots Built . | . . . Authchips . | . . . Time . | . . . Total Robot Build Rating . | . . . Part Schematics Acquired . | . . . Parts Built . | . . . Authchips . | . . . Time . | . . . Total Part Build Rating . | . . . Parts Repaired . | . . . Time . | . . . Parts Recycled . | . . . Recycled Matter . | . . . Retrieved Matter . | . . . Retrieved Components . | . . . Parts Scanalyzed . | . . . Part Schematics Acquired . | . . . Parts Damaged . | . . . Bothacking | -11 -10 -9 ------------ Run | Yrd Mat Mat Used RIF Installer . | . . . Robots Hacked . | . . . Non-combat . | . . . Combat . | . . . Robot Hacks Applied . | . . . Relay Couplers Released . | . . . Fabnet Peak Effective % . | . . . Robots Rewired . | . . . Allies Hacked . | . . . Hacks Repelled . | . . . Allies | -11 -10 -9 -------- Run | Yrd Mat Mat Total Allies . | . . . Largest Group . | . . . Highest-Rated Group . | . . . Highest-Rated Ally . | . . . Total Orders . | . . . Ally Attacks . | . . . Total Damage . | . . . Kills . | . . . Allies Corrupted . | . . . Allies Melted . | . . . Intel | -11 -10 -9 ------- Run | Yrd Mat Mat Active Infowar (turns) 129 | . 129 . Structural 129 | . 129 . Robot Analysis Total . | . . . Derelict Logs Recovered . | . . . Drone Launches . | . . . Drone Recoveries . | . . . Exploration | -11 -10 -9 ------------- Run | Yrd Mat Mat Turns Passed 717 | 103 544 70 Spaces Moved 569 | 43 416 110 Core 91 | 43 41 7 Treads . | . . . Legs 243 | . 243 . Wheels . | . . . Hover 235 | . 132 103 Flight . | . . . Fastest Speed 50 | 50 56 60 Average Speed 109 | 210 111 62 Slowest Speed 250 | 250 250 100 Overloaded Moves . | . . . Propulsion Burnouts . | . . . Robots Hopped . | . . . Potential Cave-ins . | . . . Cave-ins Triggered . | . . . Exploration Rate (%) 27 | 5 64 14 Regions Visited 2 Branch Regions . Pre-discovered Areas . | . . . Known Exits Taken . | . . . Unknown Exits Taken 2 | 1 1 . Scrap Searched . | . . . Spaces Dug . | . . . Terrain Destroyed . | . . . Melee . | . . . Projectile . | . . . AOE . | . . . Terrain Rammed . | . . . Walls Destroyed . | . . . Machines Disabled . | . . . Actions | -11 -10 -9 --------- Run | Yrd Mat Mat Total 636 | 53 472 111 Wait 14 | . 14 . Move 567 | 42 415 110 Hop . | . . . Pick Up 12 | 6 6 . Fast Attach 8 | 4 4 . Attach 3 | . 2 1 Detach 1 | . 1 . Swap 2 | . 2 . Drop 8 | . 8 . Fire 14 | 1 13 . Melee . | . . . Ram 6 | . 6 . Kick 1 | . 1 . Crush . | . . . Escape Stasis . | . . . Rewire . | . . . Trap . | . . . Miscellaneous . | . . . Route ------- -11/Scrapyard -10/Materials (discovered 2 exits: [*Mat] / [*Min]) -9/Materials History --------- Turn | Location | Event 9 | -11/Scrapyard | Discovered new exit (range 15) 104 | -11/Scrapyard | Entered Materials 312 | -10/Materials | Build established: Mutant 409 | -10/Materials | Discovered new exit (range 14) 571 | -10/Materials | Discovered new exit (range 13) 643 | -10/Materials | Core integrity fell below 50% 648 | -10/Materials | Entered another Materials area 648 | -9/Materials | Evolved 2 slots: Propulsion x1, Utility x1 674 | -9/Materials | Lost 3 parts (1p2n) 718 | -9/Materials | Self-destructed Last Messages --------------- 00616_ O-16 Technician: "IFF HANDSHAKE FAILED. SECURING TERMINAL." 00616_ Acquired Hover Unit. 00619_ ALERT: Hostiles spotted, dispatching reinforcements to Terminal M008. 00631_ Slammed into G-34 Mercenary. 00635_ Hover Unit destroyed. 00635_ Slammed into G-34 Mercenary. 00635_ Destabilizing: System interference. 00635_ Structural Scanner temporarily disabled. 00640_ Hover Unit destroyed. 00643_ Ion Engine destroyed. 00647_ S-10 Pest destroyed. PARAMETERS=PROPULSION+1,UTILITY+1 LOCATION=UNKNOWN GOAL=ESCAPE 00656_ Critical hit (Burn: +37). 00680_ U-05 Engineer works on Hadron Collector. 00711_ Hover Unit destroyed. Map ----- +----------------------------------------------------+ | ????????????????????????????????????????????? | | ????????????????????????????????????????????? | | ????????????????????????????????????????????? | | ????????????????????????????????????????????? | | ????????????????????????????????????????????? | | ????????????????????????????????????????????? | | ????????????????????????????????????????????? | | ????????????????????????????????????????????? | | ????????????????????????????????????????????? | | ????????????????????????????????????????????? | | ????????????????????????????????????????????? | | ????????????????????????????????????????????? | | ????????????????????????????????????????????? | | ????????????????????????????????????????????? | | ????????????????????????????????????????????? | | ???????????????????????????????????? ?????? | | ???????????????????????????????????+ #????? | | ???????????????????????????????????# #????? | | ???????????????????????? ??????????# #????? | | ???????????????????????# ??????????# #????? | | ???????????????????????# ??????????# #????? | | ????????????????######## ??????????# #????? | | ??????#+#+####### ## ??????????# #????? | | ??????# ## ???######## #????? | | ??????+ ## #### #????? | | ??????# @ ## #????? | | ???????????###### ## #????? | | ????????????????### ####!! "" ###### | | ??????????????????# #??#! " # | | ??????????????????#s#??# # """ | | ??????????????????# #### + """ | | ??????????????????# ## # """ | | ??????????????????# ## ### # | | ??????????????????# ## #?# # | | ??????????????????# #####+#######?# ###### | | ?????????????????## ## #??# #????? | | ?????????????????# + #??# #????? | | ?????????????????# # ! #??# #????? | | ?????????????????# # #??# #????? | | ?????????????????# # """ """ #??# #????? | | ?????????????????# # """ """ #??# #????? | | ?????????????????# # """ """ #??# #????? | | ????????????????? # #??# #????? | | ???????????????? ##+########??# #????? | | ???????????????/ #?????????# #????? | | ???????????????! ?????????# #????? | | ??????????????/! ?????????# #????? | | ????????????? ?????????# ##???? | | ????????????? ?????????# ##### | | ?????????????? #????????# | +----------------------------------------------------+ Best States ------------- Heat Dissipation 28 Energy Generation 10 Energy Capacity 250 Matter Stores 300 Matter Capacity 300 Sight Range 16 Terrain Scan Density 10 Evasion (%) 55 Item Schematics ----------------- None Robot Schematics ------------------ None Fabricated ------------ Nothing Repaired ---------- Nothing Alien Tech Used ----------------- None Achievements -------------- None Challenges ------------ None Game ------ Seed ThiefWaveChargecaster Manual? 0 Play Time 00:06:27 Cumulative 7.1 hours Start 2025.06.09 @ 21:52:22 End 2025.06.09 @ 22:00:15 Sessions 1 Manual Loads 0 Difficulty Rogue Special Mode None Game No. 20 Rogue 20 Adventurer 0 Explorer 0 Win Type - Total 0 Types 0/0/0/0/0/0/0/0/0/0 Lore% 4 Gallery% 12 Achievement% 16 Wizard Run 0 Options --------- Layout 1 ASCII 0 Keyboard 0 Movement Mouse Keybinds 0 Fullscreen 2 Font 24/Smallcaps Map View 50x35 Zoom Use 0% Tactical HUD 1 Map Filters NONE Filters NONE Steam 1 RUN: de619b7f-445f-4c87-908f-f9b97696cbd0